[Event "WSTCC-50 2020"]
[Site "Prague"]
[Date "2020.03.12"]
[Round "7.34"]
[White "Sirotkina, Nina"]
[Black "Hosticka, Frantisek"]
[Result "1/2-1/2"]
[ECO "A41"]
[WhiteElo "2183"]
[BlackElo "2096"]
[Annotator "ChessBase"]
[PlyCount "82"]
[EventDate "2020.03.06"]
[EventType "team-tourn"]
[EventCountry "CZE"]
[SourceTitle "playchess.com"]
[Source "ChessBase"]
[SourceQuality "1"]
[TimeControl "40/5400+30:1800+30"]

1. d4 {[%emt 0:00:00]} d6 {[%emt 0:00:00]} 2. Bf4 {[%emt 0:02:28]} Bg4 {[%emt 0:01:15]} 3. h3 {[%emt 0:05:22]} Bh5 {[%emt 0:01:34]} 4. Nd2 {[%emt 0:06:59]} Nf6 {[%emt 0:01:43]} 5. Ngf3 {[%emt 0:00:41]} e6 {[%emt 0:02:33]} 6. e3 {[%emt 0:06:42]} Be7 {[%emt 0:01:09]} 7. Be2 {[%emt 0:00:41]} O-O {[%emt 0:00:30]} 8. O-O {[%emt 0:08:42]} Nbd7 9. c3 Nb6 {[%emt 0:08:14]} 10. a4 {[%emt 0:02:01]} a5 {[%emt 0:00:48]} 11. Re1 {[%emt 0:02:38]} Re8 {[%emt 0:04:59]} 12. e4 {[%emt 0:03:43]} d5 {[%emt 0:01:19]} 13. e5 {[%emt 0:06:07]} Nfd7 {[%emt 0:02:39]} 14. Nb3 {[%emt 0:07:21]} Nc4 {[%emt 0:05:50]} 15. Ra2 {[%emt 0:09:07]} Bg6 {[%emt 0:04:49]} 16. Nc1 {[%emt 0:03:59]} c5 {[%emt 0:02:02]} 17. Nd3 {[%emt 0:01:14]} cxd4 {[%emt 0:01:00]} 18. cxd4 {[%emt 0:00:41]} Rc8 {[%emt 0:03:25]} 19. b3 {[%emt 0:01:12]} Ncb6 {[%emt 0:01:05]} 20. Bd2 {[%emt 0:00:51]} Na8 {[%emt 0:01:14]} 21. Nf4 {[%emt 0:00:46]} Nb8 {[%emt 0:06:50]} 22. Nxg6 {[%emt 0:01:11]} hxg6 {[%emt 0:01:02]} 23. Bb5 {[%emt 0:01:25]} Nc6 {[%emt 0:01:27]} 24. Qb1 {[%emt 0:08:30]} Rf8 {[%emt 0:02:11]} 25. Rc2 {[%emt 0:01:30]} Qb6 {[%emt 0:02:58]} 26. Qb2 {[%emt 0:02:36]} Nc7 {[%emt 0:02:18]} 27. Bxc6 {[%emt 0:09:18]} bxc6 {[%emt 0:00:26]} 28. Qc3 {[%emt 0:00:42]} Na8 {[%emt 0:03:47]} 29. Qxa5 {[%emt 0:02:53]} Qxb3 {[%emt 0:00:27]} 30. Rcc1 {[%emt 0:01:14]} Qb6 {[%emt 0:03:56]} 31. Qc3 {[%emt 0:01:58]} c5 {[%emt 0:01:09]} 32. a5 {[%emt 0:00:26]} Qa6 {[%emt 0:00:24]} 33. Rb1 cxd4 {[%emt 0:01:47]} 34. Qxd4 {[%emt 0:01:36]} Rc4 {[%emt 0:00:31]} 35. Qb2 Bc5 36. Rbc1 {[%emt 0:01:25]} Qa7 {[%emt 0:02:18]} 37. Rf1 {[%emt 0:00:29]} Rb8 {[%emt 0:00:53]} 38. Qa1 Re4 {[%emt 0:10:58]} 39. Qc3 {[%emt 0:01:36]} Rc4 40. Qa1 {[%emt 0:00:00]} Re4 {[%emt 0:00:00]} 41. Qc3 {[%emt 0:07:08]} Rc4 1/2-1/2

[Event "WSTCC-50 2020"]
[Site "Prague"]
[Date "2020.03.12"]
[Round "7.35"]
[White "Strnad, Josef"]
[Black "Bogumil, Tatiana"]
[Result "0-1"]
[ECO "A48"]
[WhiteElo "1860"]
[BlackElo "2182"]
[Annotator "ChessBase"]
[PlyCount "130"]
[EventDate "2020.03.06"]
[EventType "team-tourn"]
[EventCountry "CZE"]
[SourceTitle "playchess.com"]
[Source "ChessBase"]
[SourceQuality "1"]
[TimeControl "40/5400+30:1800+30"]

1. Nf3 {[%emt 0:00:00]} Nf6 {[%emt 0:00:12]} 2. d4 {[%emt 0:00:00]} g6 {[%emt 0:05:42]} 3. c4 {[%emt 0:00:13]} Bg7 {[%emt 0:00:22]} 4. Nc3 {[%emt 0:00:28]} d6 {[%emt 0:04:49]} 5. Bf4 {[%emt 0:02:37]} Nh5 {[%emt 0:09:34]} 6. Bg5 {[%emt 0:04:37]} h6 {[%emt 0:00:45]} 7. Bd2 {[%emt 0:00:30]} O-O {[%emt 0:02:21]} 8. e4 {[%emt 0:02:37]} Nc6 {[%emt 0:18:00]} 9. Be3 {[%emt 0:02:03]} Kh7 {[%emt 0:05:39]} 10. Be2 {[%emt 0:01:35]} Bd7 {[%emt 0:10:55]} 11. Qd2 {[%emt 0:01:50]} Nf6 {[%emt 0:02:25]} 12. h3 {[%emt 0:00:19]} Ng8 {[%emt 0:00:46]} 13. d5 {[%emt 0:05:31]} Ne5 {[%emt 0:01:04]} 14. Nd4 {[%emt 0:01:13]} c5 {[%emt 0:00:58]} 15. dxc6 {[%emt 0:01:09]} Nxc6 {[%emt 0:00:46]} 16. O-O {[%emt 0:01:08]} Qc8 {[%emt 0:06:59]} 17. Rac1 {[%emt 0:10:16]} b6 {[%emt 0:04:37]} 18. f4 {[%emt 0:03:12]} Rd8 {[%emt 0:04:06]} 19. Bf3 {[%emt 0:01:33]} Rb8 {[%emt 0:02:54]} 20. Nxc6 {[%emt 0:04:28]} Bxc6 {[%emt 0:00:05]} 21. Qe2 {[%emt 0:00:19]} Qb7 {[%emt 0:01:33]} 22. Bf2 {[%emt 0:00:54]} Nf6 {[%emt 0:02:03]} 23. Bg3 {[%emt 0:07:36]} Nd7 {[%emt 0:00:28]} 24. e5 {[%emt 0:02:37]} Bxf3 {[%emt 0:00:16]} 25. Rxf3 {[%emt 0:00:13]} f5 {[%emt 0:05:00]} 26. exf6 {[%emt 0:00:56]} Nxf6 {[%emt 0:00:27]} 27. Re1 {[%emt 0:03:50]} Qc6 {[%emt 0:03:13]} 28. Kf1 {[%emt 0:06:55]} Rb7 {[%emt 0:00:32]} 29. Qe6 {[%emt 0:02:28]} Rc8 {[%emt 0:00:36]} 30. b3 {[%emt 0:00:28]} Qd7 {[%emt 0:02:24]} 31. Qe2 {[%emt 0:05:02]} Qf5 {[%emt 0:00:28]} 32. Bh2 {[%emt 0:00:39]} h5 {[%emt 0:00:09]} 33. Nb5 {[%emt 0:01:29]} Ng8 {[%emt 0:01:03]} 34. Rd1 {[%emt 0:02:31]} a6 {[%emt 0:00:34]} 35. Na3 {[%emt 0:00:44]} Nf6 {[%emt 0:01:51]} 36. Nc2 {[%emt 0:00:44]} Ng8 {[%emt 0:01:13]} 37. Ne3 {[%emt 0:00:37]} Qe4 {[%emt 0:01:01]} 38. g4 {[%emt 0:02:42]} Rf8 {[%emt 0:00:39]} 39. f5 {[%emt 0:01:45]} gxf5 {[%emt 0:00:31]} 40. gxf5 {[%emt 0:00:00]} Bh6 {[%emt 0:00:00]} 41. Nd5 {[%emt 0:07:25]} Qxe2+ {[%emt 0:02:06]} 42. Kxe2 {[%emt 0:00:04]} Nf6 {[%emt 0:01:06]} 43. Nf4 {[%emt 0:02:21]} Bxf4 {[%emt 0:04:38]} 44. Rxf4 {[%emt 0:09:05]} Rg8 {[%emt 0:00:23]} 45. Kf3 {[%emt 0:01:19]} b5 {[%emt 0:02:30]} 46. Rd2 {[%emt 0:11:24]} bxc4 {[%emt 0:00:17]} 47. Rxc4 {[%emt 0:00:51]} Rb5 {[%emt 0:05:19]} 48. Kf4 {[%emt 0:06:43]} Kh6 {[%emt 0:02:05]} 49. Re2 {[%emt 0:03:07]} Rg5 50. Re6 {[%emt 0:06:35]} Rgxf5+ {[%emt 0:06:10]} 51. Ke3 {[%emt 0:01:32]} Rb7 {[%emt 0:00:19]} 52. Bf4+ {[%emt 0:04:04]} Kg7 {[%emt 0:00:33]} 53. Bxd6 {[%emt 0:01:40]} exd6 {[%emt 0:01:05]} 54. Rxd6 {[%emt 0:00:02]} Re7+ {[%emt 0:00:32]} 55. Kd4 {[%emt 0:00:42]} Re4+ {[%emt 0:01:46]} 56. Kc3 {[%emt 0:00:24]} Re3+ {[%emt 0:01:02]} 57. Kb4 {[%emt 0:00:25]} a5+ {[%emt 0:00:44]} 58. Ka4 {[%emt 0:00:39]} Rxh3 {[%emt 0:03:24]} 59. Ra6 {[%emt 0:00:49]} Rh2 {[%emt 0:01:22]} 60. a3 {[%emt 0:00:22]} Ra2 {[%emt 0:01:03]} 61. b4 {[%emt 0:01:13]} axb4 {[%emt 0:00:12]} 62. Rxb4 {[%emt 0:00:18]} Kg6 {[%emt 0:01:46]} 63. Kb3 {[%emt 0:00:11]} Raf2 {[%emt 0:01:08]} 64. a4 {[%emt 0:00:49]} Kg5 {[%emt 0:00:42]} 65. Rb5 {[%emt 0:00:45]} h4 {[%emt 0:00:38]} 0-1

[Event "WSTCC-50 2020"]
[Site "Prague"]
[Date "2020.03.12"]
[Round "7.38"]
[White "Grabuzova, Tatiana"]
[Black "Bartos, Jan"]
[Result "1-0"]
[ECO "E04"]
[WhiteElo "2272"]
[BlackElo "2102"]
[Annotator "ChessBase"]
[PlyCount "79"]
[EventDate "2020.03.06"]
[EventType "team-tourn"]
[EventCountry "CZE"]
[SourceTitle "playchess.com"]
[Source "ChessBase"]
[SourceQuality "1"]
[TimeControl "40/5400+30:1800+30"]

1. d4 {[%emt 0:00:00]} Nf6 {[%emt 0:00:00]} 2. c4 {[%emt 0:00:00]} e6 {[%emt 0:00:00]} 3. g3 {[%emt 0:00:00]} d5 {[%emt 0:00:00]} 4. Bg2 {[%emt 0:00:00]} dxc4 {[%emt 0:00:00]} 5. Nf3 {[%emt 0:00:04]} c5 {[%emt 0:00:08]} 6. O-O {[%emt 0:00:23]} Nc6 {[%emt 0:01:57]} 7. dxc5 {[%emt 0:00:19]} Qxd1 {[%emt 0:00:05]} 8. Rxd1 {[%emt 0:00:06]} Bxc5 {[%emt 0:00:07]} 9. Nbd2 {[%emt 0:00:18]} c3 {[%emt 0:00:10]} 10. bxc3 {[%emt 0:00:05]} O-O {[%emt 0:00:09]} 11. Ne1 {[%emt 0:09:21]} Bd7 {[%emt 0:04:14]} 12. Nd3 {[%emt 0:04:22]} Be7 {[%emt 0:00:55]} 13. Bb2 {[%emt 0:04:50]} Rfd8 {[%emt 0:01:00]} 14. Nb3 {[%emt 0:01:49]} b6 {[%emt 0:01:17]} 15. a4 {[%emt 0:02:19]} Rab8 {[%emt 0:11:40]} 16. a5 {[%emt 0:15:20]} Nxa5 {[%emt 0:02:00]} 17. Nxa5 {[%emt 0:00:11]} bxa5 {[%emt 0:00:09]} 18. Rxa5 {[%emt 0:00:08]} Bb5 {[%emt 0:00:31]} 19. Rxa7 {[%emt 0:12:19]} Bc5 {[%emt 0:02:44]} 20. Ra5 {[%emt 0:01:14]} Bxd3 {[%emt 0:03:41]} 21. Rxd3 {[%emt 0:02:50]} Bxf2+ {[%emt 0:04:38]} 22. Kf1 {[%emt 0:00:59]} Bb6 {[%emt 0:02:03]} 23. Rb5 {[%emt 0:20:27]} Rxd3 {[%emt 0:20:41]} 24. exd3 {[%emt 0:00:10]} Ng4 {[%emt 0:00:06]} 25. Bh3 {[%emt 0:14:44]} Nf2 {[%emt 0:03:20]} 26. Ba3 {[%emt 0:00:46]} Nxh3 {[%emt 0:08:05]} 27. Bd6 {[%emt 0:00:25]} Rb7 {[%emt 0:04:16]} 28. Bc5 {[%emt 0:02:15]} Bxc5 {[%emt 0:00:08]} 29. Rxb7 {[%emt 0:00:04]} Bf8 {[%emt 0:10:00]} 30. Kg2 {[%emt 0:00:58]} Ng5 {[%emt 0:00:14]} 31. h4 {[%emt 0:00:04]} h6 {[%emt 0:00:18]} 32. hxg5 {[%emt 0:00:05]} hxg5 {[%emt 0:00:04]} 33. d4 {[%emt 0:00:32]} g6 {[%emt 0:00:59]} 34. c4 {[%emt 0:01:17]} Bg7 {[%emt 0:00:20]} 35. Rb8+ {[%emt 0:00:29]} Kh7 {[%emt 0:00:05]} 36. Rd8 {[%emt 0:00:05]} Bf6 {[%emt 0:00:11]} 37. Rd7 {[%emt 0:01:14]} Kg7 {[%emt 0:00:04]} 38. c5 {[%emt 0:00:06]} Kf8 {[%emt 0:00:06]} 39. c6 {[%emt 0:00:07]} Ke8 {[%emt 0:00:09]} 40. Rb7 {[%emt 0:00:00]} 1-0

[Event "WSTCC-50 2020"]
[Site "Prague"]
[Date "2020.03.12"]
[Round "7.40"]
[White "Chudinovskikh, Alexander M"]
[Black "Chaloupka, Frantisek"]
[Result "1-0"]
[ECO "B51"]
[WhiteElo "2139"]
[BlackElo "1990"]
[Annotator "ChessBase"]
[PlyCount "68"]
[EventDate "2020.03.06"]
[EventType "team-tourn"]
[EventCountry "CZE"]
[SourceTitle "playchess.com"]
[Source "ChessBase"]
[SourceQuality "1"]
[TimeControl "40/5400+30:1800+30"]

1. e4 {[%emt 0:00:00]} c5 {[%emt 0:01:05]} 2. Nf3 {[%emt 0:00:00]} d6 {[%emt 0:00:13]} 3. Bb5+ {[%emt 0:00:00]} Nd7 {[%emt 0:01:18]} 4. O-O {[%emt 0:00:19]} a6 {[%emt 0:00:05]} 5. Bd3 {[%emt 0:00:21]} g6 {[%emt 0:00:26]} 6. a4 {[%emt 0:00:24]} b6 {[%emt 0:01:18]} 7. c3 {[%emt 0:00:08]} Bg7 {[%emt 0:00:58]} 8. Bc2 {[%emt 0:00:12]} c4 {[%emt 0:10:45]} 9. b3 {[%emt 0:00:29]} cxb3 {[%emt 0:01:52]} 10. Bxb3 {[%emt 0:00:06]} Nc5 {[%emt 0:06:52]} 11. Bc2 {[%emt 0:03:12]} Nf6 {[%emt 0:03:59]} 12. Re1 {[%emt 0:00:08]} O-O {[%emt 0:13:13]} 13. d4 {[%emt 0:00:29]} Ne6 {[%emt 0:00:56]} 14. Nbd2 {[%emt 0:00:40]} Bd7 {[%emt 0:02:23]} 15. Nf1 {[%emt 0:01:30]} b5 {[%emt 0:01:25]} 16. h3 {[%emt 0:00:52]} Qc7 {[%emt 0:02:10]} 17. Bd2 {[%emt 0:00:16]} Rfc8 {[%emt 0:01:21]} 18. axb5 {[%emt 0:02:43]} Bxb5 {[%emt 0:07:00]} 19. Ne3 {[%emt 0:05:58]} Nd7 {[%emt 0:06:13]} 20. Nd5 {[%emt 0:05:53]} Qd8 {[%emt 0:00:24]} 21. Ng5 {[%emt 0:01:50]} Nxg5 22. Bxg5 {[%emt 0:00:07]} f6 {[%emt 0:11:29]} 23. Bd2 {[%emt 0:00:22]} Nb6 {[%emt 0:02:07]} 24. Nxb6 {[%emt 0:08:25]} Qxb6 {[%emt 0:00:15]} 25. Qg4 {[%emt 0:00:17]} Qd8 {[%emt 0:10:38]} 26. Bb3+ {[%emt 0:01:38]} Kh8 {[%emt 0:00:18]} 27. Be6 {[%emt 0:00:54]} Rc7 {[%emt 0:02:01]} 28. Reb1 {[%emt 0:02:29]} Bd7 {[%emt 0:01:09]} 29. Bxd7 {[%emt 0:00:14]} Qxd7 {[%emt 0:00:10]} 30. Rxa6 {[%emt 0:01:11]} Rxa6 {[%emt 0:01:49]} 31. Rb8+ {[%emt 0:00:10]} Bf8 {[%emt 0:00:04]} 32. Bh6 {[%emt 0:00:08]} Ra8 33. Rb1 Bg7 34. Bd2 Rac8 1-0

[Event "WSTCC-50 2020"]
[Site "Prague"]
[Date "2020.03.12"]
[Round "7.43"]
[White "Marsalek, Zdenek"]
[Black "Harstad, Christian"]
[Result "1-0"]
[ECO "E63"]
[WhiteElo "2177"]
[BlackElo "1854"]
[Annotator "ChessBase"]
[PlyCount "73"]
[EventDate "2020.03.06"]
[EventType "team-tourn"]
[EventCountry "CZE"]
[SourceTitle "playchess.com"]
[Source "ChessBase"]
[SourceQuality "1"]
[TimeControl "40/5400+30:1800+30"]

1. d4 {[%emt 0:00:00]} Nf6 {[%emt 0:00:00]} 2. c4 {[%emt 0:00:00]} g6 {[%emt 0:00:00]} 3. Nc3 {[%emt 0:00:00]} Bg7 {[%emt 0:00:00]} 4. Nf3 {[%emt 0:00:00]} O-O {[%emt 0:00:31]} 5. g3 {[%emt 0:00:07]} d6 {[%emt 0:00:12]} 6. Bg2 {[%emt 0:00:06]} Nc6 {[%emt 0:00:32]} 7. O-O {[%emt 0:00:26]} a6 {[%emt 0:00:38]} 8. h3 {[%emt 0:00:09]} Bd7 {[%emt 0:01:06]} 9. e4 {[%emt 0:01:22]} e5 {[%emt 0:05:05]} 10. Be3 {[%emt 0:03:23]} Qc8 {[%emt 0:03:43]} 11. Kh2 {[%emt 0:00:48]} Nh5 {[%emt 0:03:14]} 12. Rc1 {[%emt 0:02:21]} exd4 {[%emt 0:07:26]} 13. Nxd4 {[%emt 0:01:19]} Re8 {[%emt 0:05:23]} 14. Re1 {[%emt 0:07:19]} Ne5 {[%emt 0:01:39]} 15. Nd5 {[%emt 0:02:14]} Be6 {[%emt 0:12:04]} 16. Rc2 {[%emt 0:06:21]} Qd8 {[%emt 0:05:22]} 17. b3 {[%emt 0:04:29]} c5 {[%emt 0:02:37]} 18. Ne2 {[%emt 0:05:43]} Nc6 {[%emt 0:02:56]} 19. Rd2 {[%emt 0:01:22]} Qa5 {[%emt 0:02:40]} 20. a4 {[%emt 0:04:19]} Rad8 {[%emt 0:05:35]} 21. Bg5 {[%emt 0:02:24]} Rc8 {[%emt 0:08:42]} 22. g4 {[%emt 0:08:03]} h6 {[%emt 0:03:40]} 23. Be3 {[%emt 0:00:32]} Nf6 {[%emt 0:02:33]} 24. Ndf4 {[%emt 0:01:13]} Bxg4 {[%emt 0:03:57]} 25. hxg4 {[%emt 0:00:20]} Nxg4+ {[%emt 0:00:07]} 26. Kg1 {[%emt 0:00:07]} Qd8 {[%emt 0:04:25]} 27. Bxc5 {[%emt 0:05:13]} Qh4 {[%emt 0:00:53]} 28. Bb6 {[%emt 0:00:57]} Qh2+ {[%emt 0:16:48]} 29. Kf1 {[%emt 0:00:24]} g5 {[%emt 0:01:07]} 30. Rd3 {[%emt 0:00:53]} Qh4 {[%emt 0:01:31]} 31. Rh3 {[%emt 0:00:40]} Nh2+ {[%emt 0:00:20]} 32. Kg1 {[%emt 0:01:12]} Qg4 {[%emt 0:00:32]} 33. Nd5 {[%emt 0:04:56]} Be5 {[%emt 0:00:31]} 34. f4 {[%emt 0:00:59]} gxf4 {[%emt 0:00:34]} 35. Rxh2 {[%emt 0:01:12]} f3 {[%emt 0:00:24]} 36. Nef4 {[%emt 0:00:21]} Nd4 {[%emt 0:01:13]} 37. Rh1 1-0

[Event "WSTCC-50 2020"]
[Site "Prague"]
[Date "2020.03.12"]
[Round "7.46"]
[White "Jeske, Eckhard"]
[Black "Kubikova, Hana"]
[Result "1/2-1/2"]
[ECO "A16"]
[WhiteElo "2158"]
[BlackElo "2064"]
[Annotator "ChessBase"]
[PlyCount "53"]
[EventDate "2020.03.06"]
[EventType "team-tourn"]
[EventCountry "CZE"]
[SourceTitle "playchess.com"]
[Source "ChessBase"]
[SourceQuality "1"]
[TimeControl "40/5400+30:1800+30"]

1. c4 Nf6 2. Nc3 e5 3. Nf3 d6 4. d4 Nbd7 5. g3 Be7 6. Bg2 c6 7. O-O O-O 8. Qc2 Re8 9. Re1 Qc7 10. e4 Nf8 11. h3 a6 12. Be3 c5 13. d5 Ng6 14. Nd2 Bd7 15. a4 b6 16. Kh2 Qc8 17. Nf3 Rf8 18. Ng1 Ne8 19. Nge2 Qd8 20. Qd2 Rb8 21. Rab1 a5 22. b3 h5 23. f4 f5 24. Rf1 h4 25. fxe5 Nxe5 26. gxh4 Bxh4 27. Nf4 1/2-1/2

[Event "WSTCC-50 2020"]
[Site "Prague"]
[Date "2020.03.12"]
[Round "7.47"]
[White "Svobodova, Michaela"]
[Black "Jansen, Andreas"]
[Result "1-0"]
[ECO "B06"]
[WhiteElo "1988"]
[BlackElo "2206"]
[Annotator "ChessBase"]
[PlyCount "49"]
[EventDate "2020.03.06"]
[EventType "team-tourn"]
[EventCountry "CZE"]
[SourceTitle "playchess.com"]
[Source "ChessBase"]
[SourceQuality "1"]
[TimeControl "40/5400+30:1800+30"]

1. e4 g6 2. d4 d6 3. Bc4 Bg7 4. Nf3 c6 5. Bb3 Qc7 6. O-O e5 7. c3 Nf6 8. Re1 O-O 9. Bg5 Nbd7 10. Nbd2 Nb6 11. a4 a5 12. h3 Kh8 13. Qc2 Ng8 14. Nc4 Nxc4 15. Bxc4 f5 16. dxe5 dxe5 17. exf5 Bxf5 18. Qb3 Ne7 19. Bh4 Bc8 20. Bg3 Rxf3 21. gxf3 Bxh3 22. Be6 Bf5 23. Rad1 Rd8 24. Qxb7 Rxd1 25. Rxd1 1-0

[Event "WSTCC-50 2020"]
[Site "Prague"]
[Date "2020.03.12"]
[Round "7.48"]
[White "Moritz, Hartmut"]
[Black "Taborska, Veronika"]
[Result "1/2-1/2"]
[ECO "B00"]
[WhiteElo "2088"]
[BlackElo "1995"]
[Annotator "ChessBase"]
[PlyCount "74"]
[EventDate "2020.03.06"]
[EventType "team-tourn"]
[EventCountry "CZE"]
[SourceTitle "playchess.com"]
[Source "ChessBase"]
[SourceQuality "1"]
[TimeControl "40/5400+30:1800+30"]

1. e4 {[%emt 0:00:00]} d6 {[%emt 0:00:00]} 2. d3 Nf6 {[%emt 0:00:53]} 3. f4 {[%emt 0:01:15]} e5 {[%emt 0:02:04]} 4. Nf3 {[%emt 0:01:23]} Nc6 {[%emt 0:00:51]} 5. c3 {[%emt 0:06:42]} Bg4 {[%emt 0:06:34]} 6. Be2 {[%emt 0:02:07]} g6 {[%emt 0:03:06]} 7. O-O {[%emt 0:07:06]} Bg7 {[%emt 0:03:54]} 8. Na3 {[%emt 0:02:27]} Qe7 {[%emt 0:06:18]} 9. h3 {[%emt 0:14:06]} Bd7 {[%emt 0:04:30]} 10. Be3 {[%emt 0:12:13]} exf4 {[%emt 0:05:09]} 11. Bxf4 {[%emt 0:00:17]} Nh5 {[%emt 0:01:24]} 12. Bh2 {[%emt 0:03:30]} O-O-O {[%emt 0:02:20]} 13. Nc2 {[%emt 0:05:01]} Nf6 {[%emt 0:22:08]} 14. b4 {[%emt 0:06:31]} h5 {[%emt 0:04:25]} 15. b5 {[%emt 0:04:50]} Ne5 {[%emt 0:00:40]} 16. d4 {[%emt 0:03:31]} Nxf3+ {[%emt 0:01:38]} 17. Bxf3 {[%emt 0:03:54]} g5 {[%emt 0:08:38]} 18. e5 {[%emt 0:02:46]} dxe5 {[%emt 0:02:07]} 19. dxe5 {[%emt 0:04:01]} Nh7 20. Qd5 {[%emt 0:01:26]} Bc6 {[%emt 0:04:47]} 21. Qc4 Bxf3 {[%emt 0:02:39]} 22. Rxf3 {[%emt 0:01:03]} Rhf8 {[%emt 0:03:30]} 23. Re1 {[%emt 0:02:41]} Qe6 {[%emt 0:01:02]} 24. Qc5 Qb6 {[%emt 0:01:40]} 25. Qxb6 {[%emt 0:04:24]} axb6 {[%emt 0:02:29]} 26. Nd4 {[%emt 0:01:38]} Rde8 {[%emt 0:01:17]} 27. Rf5 f6 28. e6 {[%emt 0:00:46]} Rg8 {[%emt 0:03:07]} 29. Rd5 {[%emt 0:01:02]} g4 {[%emt 0:00:53]} 30. Rd7 {[%emt 0:02:28]} g3 {[%emt 0:03:14]} 31. Bxg3 {[%emt 0:00:21]} Bf8 {[%emt 0:00:24]} 32. Rxc7+ {[%emt 0:00:36]} Kd8 {[%emt 0:00:16]} 33. Rd7+ {[%emt 0:04:18]} Kc8 {[%emt 0:00:12]} 34. Bf4 {[%emt 0:00:35]} Ng5 {[%emt 0:00:18]} 35. Rc7+ {[%emt 0:00:58]} Kd8 {[%emt 0:00:22]} 36. h4 {[%emt 0:00:48]} Nh3+ {[%emt 0:00:13]} 37. Kf1 {[%emt 0:00:55]} Nxf4 1/2-1/2